[Event "*** Titled Tuesday Blitz"]
[Site "Chess.com"]
[Date "2018.11.06"]
[Round "8"]
[White "aRk_iN"]
[Black "PawnEatingZombie"]
[Result "1-0"]
[WhiteElo "2153"]
[BlackElo "2095"]
[TimeControl "180+2"]
[EndTime "14:52:04 PST"]
[Termination "aRk_iN won by checkmate"]

1. e4 {[%clk 0:03:01.9]} 1... e6 {[%clk 0:03:00.6]} 2. d4 {[%clk 0:03:02.5]}
2... d5 {[%clk 0:03:00.9]} 3. Nc3 {[%clk 0:03:01.6]} 3... Nf6 {[%clk 0:02:59.7]}
4. e5 {[%clk 0:03:01.8]} 4... Nfd7 {[%clk 0:03:00.3]} 5. f4 {[%clk 0:03:03.4]}
5... c5 {[%clk 0:03:01.4]} 6. Nf3 {[%clk 0:03:04.8]} 6... Nc6 {[%clk 0:03:02.8]}
7. Be3 {[%clk 0:03:05.7]} 7... a6 {[%clk 0:03:03.9]} 8. Qd2 {[%clk 0:02:59.5]}
8... b5 {[%clk 0:03:03.7]} 9. dxc5 {[%clk 0:02:57.7]} 9... Bxc5 {[%clk
0:03:02.5]} 10. a3 {[%clk 0:02:46.4]} 10... Qb6 {[%clk 0:03:00.6]} 11. Bf2
{[%clk 0:02:35.5]} 11... Bb7 {[%clk 0:02:51.9]} 12. Bd3 {[%clk 0:02:32.8]} 12...
Bxf2+ {[%clk 0:02:44.1]} 13. Qxf2 {[%clk 0:02:33.3]} 13... Qxf2+ {[%clk
0:02:45.7]} 14. Kxf2 {[%clk 0:02:34.4]} 14... Ke7 {[%clk 0:02:45.3]} 15. Ne2
{[%clk 0:02:34.8]} 15... Nc5 {[%clk 0:02:42.7]} 16. Ned4 {[%clk 0:02:33.6]}
16... Ne4+ {[%clk 0:02:12.8]} 17. Ke3 {[%clk 0:02:26.4]} 17... f6 {[%clk
0:01:49.4]} 18. Rhf1 {[%clk 0:02:08]} 18... Rac8 {[%clk 0:01:37.7]} 19. c3
{[%clk 0:01:53]} 19... h6 {[%clk 0:01:29.6]} 20. Rae1 {[%clk 0:01:42.3]} 20...
f5 {[%clk 0:01:28.1]} 21. Nxc6+ {[%clk 0:01:39.5]} 21... Bxc6 {[%clk 0:01:28.2]}
22. Bxe4 {[%clk 0:01:36.4]} 22... dxe4 {[%clk 0:01:28]} 23. Nd4 {[%clk
0:01:36.8]} 23... Bd5 {[%clk 0:01:27.8]} 24. Rf2 {[%clk 0:01:32.6]} 24... g5
{[%clk 0:01:25.9]} 25. g3 {[%clk 0:01:07.2]} 25... g4 {[%clk 0:01:26.7]} 26. Rd2
{[%clk 0:01:06.9]} 26... Rcd8 {[%clk 0:00:54.2]} 27. Red1 {[%clk 0:01:08]} 27...
Bb7 {[%clk 0:00:42]} 28. Nb3 {[%clk 0:01:08.4]} 28... Rxd2 {[%clk 0:00:40.4]}
29. Rxd2 {[%clk 0:01:09.5]} 29... Rd8 {[%clk 0:00:40.4]} 30. Rxd8 {[%clk
0:00:53.2]} 30... Kxd8 {[%clk 0:00:39.5]} 31. Nc5 {[%clk 0:00:54.8]} 31... Bc8
{[%clk 0:00:40.1]} 32. Kd4 {[%clk 0:00:55.9]} 32... Kc7 {[%clk 0:00:40.5]} 33.
b4 {[%clk 0:00:53.7]} 33... Kc6 {[%clk 0:00:38.7]} 34. Nb3 {[%clk 0:00:42.3]}
34... Bd7 {[%clk 0:00:36.1]} 35. Nd2 {[%clk 0:00:40.1]} 35... Bc8 {[%clk
0:00:27.7]} 36. Nf1 {[%clk 0:00:36.1]} 36... Bd7 {[%clk 0:00:27.6]} 37. Ne3
{[%clk 0:00:37.2]} 37... h5 {[%clk 0:00:26.4]} 38. c4 {[%clk 0:00:37]} 38... Bc8
{[%clk 0:00:27]} 39. c5 {[%clk 0:00:19.1]} 39... Bd7 {[%clk 0:00:27.7]} 40. Kc3
{[%clk 0:00:20.1]} 40... Bc8 {[%clk 0:00:25.2]} 41. Kd2 {[%clk 0:00:21.5]} 41...
Bd7 {[%clk 0:00:21.5]} 42. Ke1 {[%clk 0:00:23.1]} 42... Bc8 {[%clk 0:00:22.5]}
43. Kf2 {[%clk 0:00:24.7]} 43... Bd7 {[%clk 0:00:23.5]} 44. Kg2 {[%clk
0:00:26.3]} 44... Bc8 {[%clk 0:00:23.8]} 45. h3 {[%clk 0:00:27.9]} 45... Bd7
{[%clk 0:00:24.4]} 46. hxg4 {[%clk 0:00:28.3]} 46... hxg4 {[%clk 0:00:26.3]} 47.
Kf2 {[%clk 0:00:28.5]} 47... Bc8 {[%clk 0:00:26.6]} 48. Ke2 {[%clk 0:00:30]}
48... Bd7 {[%clk 0:00:27]} 49. Kd2 {[%clk 0:00:31.7]} 49... Bc8 {[%clk
0:00:27.1]} 50. Kc3 {[%clk 0:00:33.4]} 50... Bd7 {[%clk 0:00:28.3]} 51. Kb3
{[%clk 0:00:34.8]} 51... Bc8 {[%clk 0:00:29.2]} 52. Nd1 {[%clk 0:00:35.3]} 52...
Bd7 {[%clk 0:00:30]} 53. Nc3 {[%clk 0:00:36]} 53... Bc8 {[%clk 0:00:30.8]} 54.
a4 {[%clk 0:00:35.6]} 54... Bd7 {[%clk 0:00:31.8]} 55. axb5+ {[%clk 0:00:34.9]}
55... axb5 {[%clk 0:00:33.7]} 56. Kc2 {[%clk 0:00:31.5]} 56... Bc8 {[%clk
0:00:34.1]} 57. Kd2 {[%clk 0:00:31]} 57... Bd7 {[%clk 0:00:34.4]} 58. Ne2 {[%clk
0:00:32.1]} 58... Kd5 {[%clk 0:00:34]} 59. Kc3 {[%clk 0:00:31.2]} 59... Bc8
{[%clk 0:00:25.5]} 60. Nd4 {[%clk 0:00:29.7]} 60... Bd7 {[%clk 0:00:26.4]} 61.
Nc2 {[%clk 0:00:30.8]} 61... Bc6 {[%clk 0:00:25.5]} 62. Ne3# {[%clk 0:00:31.3]}
1-0

[Event "*** Titled Tuesday Blitz"]
[Site "Chess.com"]
[Date "2018.11.06"]
[Round "8"]
[White "GhostOfGreenval"]
[Black "olksuna"]
[Result "1-0"]
[WhiteElo "2704"]
[BlackElo "2538"]
[TimeControl "180+2"]
[EndTime "14:52:09 PST"]
[Termination "GhostOfGreenval won by resignation"]

1. d4 {[%clk 0:02:35.7]} 1... d5 {[%clk 0:02:59.5]} 2. c4 {[%clk 0:02:36.9]}
2... e6 {[%clk 0:02:58.3]} 3. Nf3 {[%clk 0:02:38.6]} 3... c6 {[%clk 0:02:58.4]}
4. g3 {[%clk 0:02:38.6]} 4... f5 {[%clk 0:02:57.1]} 5. Bg2 {[%clk 0:02:38.4]}
5... Nf6 {[%clk 0:02:58.6]} 6. O-O {[%clk 0:02:40.1]} 6... Bd6 {[%clk
0:02:57.9]} 7. Qc2 {[%clk 0:02:40.5]} 7... O-O {[%clk 0:02:57.7]} 8. Nc3 {[%clk
0:02:41.1]} 8... b6 {[%clk 0:02:54.1]} 9. Rb1 {[%clk 0:02:38.4]} 9... Qe7 {[%clk
0:02:53.2]} 10. Bg5 {[%clk 0:02:37.3]} 10... Nbd7 {[%clk 0:02:37.7]} 11. cxd5
{[%clk 0:02:38.2]} 11... cxd5 {[%clk 0:02:38]} 12. Nb5 {[%clk 0:02:28]} 12...
Ba6 {[%clk 0:02:33.5]} 13. Nxd6 {[%clk 0:02:28.5]} 13... Qxd6 {[%clk 0:02:34.6]}
14. Bf4 {[%clk 0:02:28.6]} 14... Qe7 {[%clk 0:02:35.6]} 15. Rfc1 {[%clk
0:02:24.8]} 15... Rfc8 {[%clk 0:02:34.2]} 16. Qd1 {[%clk 0:02:26.3]} 16... Ne4
{[%clk 0:02:28.2]} 17. Nd2 {[%clk 0:02:12.3]} 17... h6 {[%clk 0:01:39.5]} 18.
Nxe4 {[%clk 0:02:04.5]} 18... fxe4 {[%clk 0:01:40]} 19. f3 {[%clk 0:01:55.4]}
19... Nf6 {[%clk 0:01:31]} 20. Be5 {[%clk 0:01:51.7]} 20... exf3 {[%clk
0:01:16.2]} 21. Bxf3 {[%clk 0:01:53.6]} 21... Rxc1 {[%clk 0:01:15.6]} 22. Rxc1
{[%clk 0:01:54.1]} 22... Rc8 {[%clk 0:01:17.1]} 23. Rxc8+ {[%clk 0:01:40.2]}
23... Bxc8 {[%clk 0:01:17.4]} 24. Qc2 {[%clk 0:01:40.8]} 24... Bb7 {[%clk
0:01:14.9]} 25. Bxf6 {[%clk 0:01:40.7]} 25... Qxf6 {[%clk 0:01:13.6]} 26. Qc7
{[%clk 0:01:38]} 26... Qxd4+ {[%clk 0:01:11.3]} 27. Kg2 {[%clk 0:01:38.5]} 27...
Ba6 {[%clk 0:01:07.3]} 28. Qxa7 {[%clk 0:01:39.3]} 28... Bb5 {[%clk 0:01:03.8]}
29. b3 {[%clk 0:01:32.9]} 29... Qe3 {[%clk 0:01:01.6]} 30. Qb8+ {[%clk
0:01:30.8]} 30... Kh7 {[%clk 0:00:59.1]} 31. Qf4 {[%clk 0:01:28.3]} 31... Qxf4
{[%clk 0:00:57.1]} 32. gxf4 {[%clk 0:01:30.2]} 32... Kg6 {[%clk 0:00:58.5]} 33.
e3 {[%clk 0:01:25.6]} 33... Kf5 {[%clk 0:00:59.2]} 34. Kg3 {[%clk 0:01:26.7]}
34... g5 {[%clk 0:00:58.1]} 35. fxg5 {[%clk 0:01:22.4]} 35... hxg5 {[%clk
0:00:58.5]} 36. a4 {[%clk 0:01:21.9]} 36... Bd3 {[%clk 0:00:56.3]} 37. b4 {[%clk
0:01:19.2]} 37... Bc4 {[%clk 0:00:55.9]} 38. a5 {[%clk 0:01:15.1]} 38... bxa5
{[%clk 0:00:57]} 39. bxa5 {[%clk 0:01:17]} 39... Ba6 {[%clk 0:00:51.4]} 40. Kf2
{[%clk 0:01:15.6]} 40... Bb7 {[%clk 0:00:45.7]} 41. Be2 {[%clk 0:01:14.9]} 41...
Ke4 {[%clk 0:00:45.6]} 42. a6 {[%clk 0:01:11.6]} 42... Ba8 {[%clk 0:00:36.2]}
43. Bb5 {[%clk 0:01:09.4]} 43... d4 {[%clk 0:00:31.7]} 44. exd4 {[%clk
0:01:07.7]} 44... Kxd4 {[%clk 0:00:33.2]} 45. Bf1 {[%clk 0:00:45.1]} 45... e5
{[%clk 0:00:32.2]} 46. Kg3 {[%clk 0:00:42.4]} 46... Ke3 {[%clk 0:00:17.2]} 47.
Kg4 {[%clk 0:00:37.4]} 47... Kf2 {[%clk 0:00:18.3]} 48. Bb5 {[%clk 0:00:37.1]}
48... Kg2 {[%clk 0:00:18.8]} 49. Kxg5 {[%clk 0:00:31.4]} 49... Kxh2 {[%clk
0:00:17.3]} 50. Kf5 {[%clk 0:00:30.4]} 50... e4 {[%clk 0:00:18.4]} 51. Kf4
{[%clk 0:00:27.8]} 51... Kg2 {[%clk 0:00:19.6]} 52. Ke3 {[%clk 0:00:26.6]} 52...
Kg3 {[%clk 0:00:19.4]} 53. Bd7 {[%clk 0:00:27.2]} 53... Kh4 {[%clk 0:00:15.2]}
54. Bc8 {[%clk 0:00:28.5]} 1-0

[Event "*** Titled Tuesday Blitz"]
[Site "Chess.com"]
[Date "2018.11.06"]
[Round "8"]
[White "iturrizaga"]
[Black "nearestway"]
[Result "1/2-1/2"]
[WhiteElo "2792"]
[BlackElo "2542"]
[TimeControl "180+2"]
[EndTime "14:52:30 PST"]
[Termination "Game drawn by agreement"]

1. Nf3 {[%clk 0:03:01.9]} 1... c5 {[%clk 0:03:00.6]} 2. c4 {[%clk 0:03:03.8]}
2... Nf6 {[%clk 0:03:00.5]} 3. Nc3 {[%clk 0:03:05.7]} 3... e6 {[%clk 0:03:01.3]}
4. g3 {[%clk 0:03:05.7]} 4... b6 {[%clk 0:03:02.3]} 5. Bg2 {[%clk 0:03:06.4]}
5... Bb7 {[%clk 0:03:03.5]} 6. O-O {[%clk 0:03:08]} 6... Be7 {[%clk 0:03:04.5]}
7. d4 {[%clk 0:03:09.6]} 7... cxd4 {[%clk 0:03:01.7]} 8. Qxd4 {[%clk 0:03:11.5]}
8... O-O {[%clk 0:03:02]} 9. Rd1 {[%clk 0:03:09.8]} 9... d6 {[%clk 0:03:02.8]}
10. Bg5 {[%clk 0:03:10.3]} 10... Nc6 {[%clk 0:03:02.3]} 11. Qd2 {[%clk
0:03:10.8]} 11... Qb8 {[%clk 0:03:00.5]} 12. Rac1 {[%clk 0:03:07.5]} 12... Rd8
{[%clk 0:02:54.6]} 13. h3 {[%clk 0:03:02.1]} 13... h6 {[%clk 0:02:52.4]} 14. Bf4
{[%clk 0:03:00.7]} 14... Ne5 {[%clk 0:02:50]} 15. b3 {[%clk 0:02:42.2]} 15...
Ng6 {[%clk 0:02:50.8]} 16. Be3 {[%clk 0:02:42.6]} 16... d5 {[%clk 0:02:49.2]}
17. cxd5 {[%clk 0:02:25.6]} 17... Nxd5 {[%clk 0:02:51.1]} 18. Nxd5 {[%clk
0:02:26.6]} 18... Bxd5 {[%clk 0:02:49.2]} 19. Qb2 {[%clk 0:02:22.1]} 19... Qb7
{[%clk 0:02:49.8]} 20. Bd4 {[%clk 0:02:19.9]} 20... f6 {[%clk 0:02:48.4]} 21.
Bc3 {[%clk 0:02:18.3]} 21... Rac8 {[%clk 0:02:45.5]} 22. Rd3 {[%clk 0:02:11.5]}
22... b5 {[%clk 0:02:40.7]} 23. Rcd1 {[%clk 0:02:08.3]} 23... b4 {[%clk
0:02:39.7]} 24. Be1 {[%clk 0:01:54.9]} 24... a5 {[%clk 0:02:40.9]} 25. h4 {[%clk
0:01:50.6]} 25... Be4 {[%clk 0:02:25.3]} 26. Rxd8+ {[%clk 0:01:48.6]} 26... Rxd8
{[%clk 0:02:27.2]} 27. Rxd8+ {[%clk 0:01:49.5]} 27... Bxd8 {[%clk 0:02:29.1]}
28. Qd4 {[%clk 0:01:46.4]} 28... Bb6 {[%clk 0:02:20.9]} 29. Qc4 {[%clk 0:01:41]}
29... Bd5 {[%clk 0:02:19.9]} 30. Qc2 {[%clk 0:01:34.2]} 30... Ne7 {[%clk
0:02:20.3]} 31. Bh3 {[%clk 0:01:32.6]} 31... Kf7 {[%clk 0:02:11.5]} 32. Nd2
{[%clk 0:01:23.5]} 32... Qc6 {[%clk 0:02:08.4]} 33. Qd3 {[%clk 0:01:18.2]} 33...
f5 {[%clk 0:02:05.4]} 34. h5 {[%clk 0:01:10.6]} 34... Bc7 {[%clk 0:02:00.8]} 35.
Nc4 {[%clk 0:01:06.4]} 35... Ng8 {[%clk 0:01:59.1]} 36. Ne3 {[%clk 0:00:42.8]}
36... Be4 {[%clk 0:01:57.9]} 37. Qd2 {[%clk 0:00:31.7]} 37... Bb6 {[%clk
0:01:49.8]} 38. Nc4 {[%clk 0:00:32]} 38... Bc7 {[%clk 0:01:50.7]} 39. a3 {[%clk
0:00:23.8]} 39... bxa3 {[%clk 0:01:46.1]} 40. Nxa3 {[%clk 0:00:25.7]} 40... Bd5
{[%clk 0:01:43]} 41. Qe3 {[%clk 0:00:17.8]} 41... Bb6 {[%clk 0:01:41.1]} 42. Qd3
{[%clk 0:00:14.8]} 42... Nf6 {[%clk 0:01:33.3]} 43. Nc4 {[%clk 0:00:15]} 43...
Bc7 {[%clk 0:01:34]} 44. Bc3 {[%clk 0:00:12.8]} 44... a4 {[%clk 0:01:31.2]} 45.
Nd2 {[%clk 0:00:05.8]} 45... axb3 {[%clk 0:01:29.3]} 46. Bxf6 {[%clk 0:00:06.5]}
46... Kxf6 {[%clk 0:01:27]} 47. Nxb3 {[%clk 0:00:07.5]} 47... Qc4 {[%clk
0:01:24.6]} 48. Qd4+ {[%clk 0:00:06.7]} 48... Qxd4 {[%clk 0:01:20.7]} 49. Nxd4
{[%clk 0:00:08.6]} 49... Bb6 {[%clk 0:01:19.7]} 50. Nf3 {[%clk 0:00:09.3]} 50...
Bc4 {[%clk 0:01:17.6]} 51. Bf1 {[%clk 0:00:09.7]} 51... Bb3 {[%clk 0:01:12.6]}
52. e3 {[%clk 0:00:10.2]} 52... e5 {[%clk 0:01:12.1]} 53. Be2 {[%clk 0:00:10.8]}
53... Bf7 {[%clk 0:01:11.8]} 54. Nd2 {[%clk 0:00:11.4]} 54... Bd5 {[%clk
0:01:04.7]} 55. Nf3 {[%clk 0:00:10.9]} 55... Ba5 {[%clk 0:01:03.3]} 56. Nh4
{[%clk 0:00:11.3]} 56... Bf7 {[%clk 0:00:56.8]} 57. f4 {[%clk 0:00:12.2]} 57...
Bb6 {[%clk 0:00:55.8]} 58. Kf2 {[%clk 0:00:12.8]} 58... Bd5 {[%clk 0:00:47.1]}
59. Nf3 {[%clk 0:00:12.3]} 59... e4 {[%clk 0:00:44.5]} 60. Nh4 {[%clk
0:00:11.9]} 60... Bf7 {[%clk 0:00:45.1]} 61. g4 {[%clk 0:00:11.5]} 1/2-1/2

[Event "*** Titled Tuesday Blitz"]
[Site "Chess.com"]
[Date "2018.11.06"]
[Round "8"]
[White "Msb2"]
[Black "VladimirPotkin"]
[Result "0-1"]
[WhiteElo "2858"]
[BlackElo "2661"]
[TimeControl "180+2"]
[EndTime "14:52:50 PST"]
[Termination "VladimirPotkin won by resignation"]

1. d4 {[%clk 0:03:01.9]} 1... Nf6 {[%clk 0:03:00.1]} 2. c4 {[%clk 0:03:02.8]}
2... e6 {[%clk 0:03:00.9]} 3. g3 {[%clk 0:03:03.4]} 3... d5 {[%clk 0:03:00.9]}
4. Bg2 {[%clk 0:03:04.5]} 4... dxc4 {[%clk 0:03:02]} 5. Qa4+ {[%clk 0:03:05.1]}
5... c6 {[%clk 0:03:02.1]} 6. Qxc4 {[%clk 0:03:05.9]} 6... b5 {[%clk 0:03:03.7]}
7. Qc2 {[%clk 0:03:07.1]} 7... Bb7 {[%clk 0:03:05.1]} 8. Nf3 {[%clk 0:03:07.3]}
8... Nbd7 {[%clk 0:03:05.3]} 9. O-O {[%clk 0:03:08.5]} 9... c5 {[%clk
0:03:03.9]} 10. dxc5 {[%clk 0:03:06.1]} 10... Bxc5 {[%clk 0:03:05.8]} 11. Bf4
{[%clk 0:03:01.6]} 11... Rc8 {[%clk 0:03:05.7]} 12. Qd1 {[%clk 0:03:01.9]} 12...
O-O {[%clk 0:03:03.8]} 13. Bd6 {[%clk 0:03:02.8]} 13... Bxd6 {[%clk 0:03:01.6]}
14. Qxd6 {[%clk 0:03:04.7]} 14... Ne4 {[%clk 0:02:58.1]} 15. Qa3 {[%clk
0:02:59.6]} 15... Qb6 {[%clk 0:02:49.5]} 16. Nbd2 {[%clk 0:02:44.9]} 16... Ndf6
{[%clk 0:02:40.4]} 17. Nxe4 {[%clk 0:02:41.3]} 17... Nxe4 {[%clk 0:02:42.3]} 18.
e3 {[%clk 0:02:38]} 18... b4 {[%clk 0:02:29.9]} 19. Qb3 {[%clk 0:02:37.2]} 19...
Nc5 {[%clk 0:02:21.2]} 20. Qc2 {[%clk 0:02:21.2]} 20... Be4 {[%clk 0:02:11.4]}
21. Qc4 {[%clk 0:01:32.9]} 21... Bd3 {[%clk 0:02:10.6]} 22. Qh4 {[%clk
0:01:34.5]} 22... Bxf1 {[%clk 0:02:08.5]} 23. Rxf1 {[%clk 0:01:36.4]} 23... Rfd8
{[%clk 0:01:59.8]} 24. Nd4 {[%clk 0:01:27.8]} 24... g6 {[%clk 0:01:47.7]} 25.
Nc6 {[%clk 0:01:26.3]} 25... Rxc6 {[%clk 0:01:36.5]} 26. Bxc6 {[%clk 0:01:28.2]}
26... Rd2 {[%clk 0:01:30]} 27. Bf3 {[%clk 0:01:29.2]} 27... Nd3 {[%clk
0:00:59.9]} 28. Qf6 {[%clk 0:00:57.8]} 28... e5 {[%clk 0:00:39.1]} 29. Qg5
{[%clk 0:00:43]} 29... Kg7 {[%clk 0:00:29.6]} 30. Be4 {[%clk 0:00:40.8]} 30...
h6 {[%clk 0:00:27]} 31. Qe7 {[%clk 0:00:38.8]} 31... Qf6 {[%clk 0:00:19.8]} 32.
Qd7 {[%clk 0:00:27]} 32... Qe6 {[%clk 0:00:11.7]} 33. Qxa7 {[%clk 0:00:19.8]}
33... Nxb2 {[%clk 0:00:12.6]} 34. Qc5 {[%clk 0:00:18.5]} 34... Qd6 {[%clk
0:00:12.3]} 35. Qxd6 {[%clk 0:00:07.9]} 35... Rxd6 {[%clk 0:00:14.2]} 36. Kg2
{[%clk 0:00:06.8]} 36... f5 {[%clk 0:00:15]} 37. Rb1 {[%clk 0:00:06.9]} 37...
Rd2 {[%clk 0:00:12]} 38. Bf3 {[%clk 0:00:06.2]} 38... Nd3 {[%clk 0:00:13.4]} 39.
Kg1 {[%clk 0:00:05.2]} 39... Nxf2 {[%clk 0:00:12.7]} 40. Rxb4 {[%clk 0:00:04.5]}
40... e4 {[%clk 0:00:14.1]} 41. Rb7+ {[%clk 0:00:05.2]} 41... Kf6 {[%clk
0:00:14.7]} 42. Rb6+ {[%clk 0:00:06.5]} 42... Ke5 {[%clk 0:00:15.9]} 43. Bg2
{[%clk 0:00:07.5]} 43... Ng4 {[%clk 0:00:16.7]} 44. Rb5+ {[%clk 0:00:08.2]}
44... Kf6 {[%clk 0:00:17.4]} 45. Rb3 {[%clk 0:00:09.9]} 45... Re2 {[%clk
0:00:17.2]} 46. Bf1 {[%clk 0:00:10.3]} 46... Rxa2 {[%clk 0:00:17.7]} 47. Rb6+
{[%clk 0:00:10.8]} 47... Ke5 {[%clk 0:00:17.8]} 48. Rb5+ {[%clk 0:00:12.2]}
48... Kd6 {[%clk 0:00:18.9]} 49. Rb6+ {[%clk 0:00:12.4]} 49... Kc5 {[%clk
0:00:19.9]} 50. Rb5+ {[%clk 0:00:14]} 50... Kc6 {[%clk 0:00:19.9]} 51. Rb3
{[%clk 0:00:15.5]} 51... Ne5 {[%clk 0:00:20.4]} 52. Rc3+ {[%clk 0:00:15.9]}
52... Kd6 {[%clk 0:00:20.7]} 53. Bg2 {[%clk 0:00:17.4]} 53... Rd2 {[%clk
0:00:20.9]} 54. h3 {[%clk 0:00:17.5]} 54... Rd1+ {[%clk 0:00:20.3]} 55. Kf2
{[%clk 0:00:18.2]} 55... Rd2+ {[%clk 0:00:21.5]} 56. Kf1 {[%clk 0:00:18.8]}
56... Nd3 {[%clk 0:00:22.3]} 57. Ra3 {[%clk 0:00:17.6]} 57... Kc5 {[%clk
0:00:21.9]} 58. Ra6 {[%clk 0:00:18.2]} 58... Rd1+ {[%clk 0:00:22]} 59. Ke2
{[%clk 0:00:19.3]} 59... Re1+ {[%clk 0:00:23]} 60. Kd2 {[%clk 0:00:20.8]} 60...
Rg1 {[%clk 0:00:24.4]} 61. Rxg6 {[%clk 0:00:21.6]} 61... Rxg2+ {[%clk
0:00:25.2]} 62. Kc3 {[%clk 0:00:23.5]} 62... Kd5 {[%clk 0:00:25.2]} 63. Rxh6
{[%clk 0:00:22.7]} 63... Rxg3 {[%clk 0:00:25.2]} 64. Rh5 {[%clk 0:00:23.8]}
64... Ke5 {[%clk 0:00:25.5]} 65. Kd2 {[%clk 0:00:25.3]} 65... Rg2+ {[%clk
0:00:26.6]} 66. Kc3 {[%clk 0:00:26.9]} 66... Re2 {[%clk 0:00:26.6]} 0-1

[Event "*** Titled Tuesday Blitz"]
[Site "Chess.com"]
[Date "2018.11.06"]
[Round "8"]
[White "murmah2003"]
[Black "xamax2000"]
[Result "1-0"]
[WhiteElo "2508"]
[BlackElo "2473"]
[TimeControl "180+2"]
[EndTime "14:53:21 PST"]
[Termination "murmah2003 won by resignation"]

1. d4 {[%clk 0:03:01.9]} 1... Nf6 {[%clk 0:03:00.2]} 2. c4 {[%clk 0:03:03.5]}
2... g6 {[%clk 0:03:01.7]} 3. Nf3 {[%clk 0:03:05]} 3... Bg7 {[%clk 0:03:03.3]}
4. Nc3 {[%clk 0:03:06.8]} 4... O-O {[%clk 0:03:04.8]} 5. e4 {[%clk 0:03:07.7]}
5... d6 {[%clk 0:03:06.2]} 6. Be2 {[%clk 0:03:09.3]} 6... Na6 {[%clk 0:03:05.8]}
7. O-O {[%clk 0:03:09.9]} 7... e5 {[%clk 0:03:06.6]} 8. Be3 {[%clk 0:03:10.7]}
8... Ng4 {[%clk 0:03:07.3]} 9. Bg5 {[%clk 0:03:11.6]} 9... Qe8 {[%clk 0:03:09]}
10. h3 {[%clk 0:03:02.7]} 10... f6 {[%clk 0:03:08.5]} 11. Bc1 {[%clk 0:02:51.7]}
11... Nh6 {[%clk 0:03:09]} 12. c5 {[%clk 0:02:24.1]} 12... exd4 {[%clk
0:03:04.2]} 13. Bxa6 {[%clk 0:02:25]} 13... dxc3 {[%clk 0:02:54.6]} 14. Bc4+
{[%clk 0:02:00.7]} 14... Be6 {[%clk 0:02:50]} 15. Qb3 {[%clk 0:01:57.3]} 15...
Bxc4 {[%clk 0:02:46.1]} 16. Qxc4+ {[%clk 0:01:59.2]} 16... Qf7 {[%clk
0:02:43.9]} 17. Qxc3 {[%clk 0:01:57.9]} 17... dxc5 {[%clk 0:02:44.6]} 18. Qxc5
{[%clk 0:01:56.6]} 18... Rfe8 {[%clk 0:02:42.1]} 19. Re1 {[%clk 0:01:49.2]}
19... Qe7 {[%clk 0:02:12.5]} 20. Qd5+ {[%clk 0:01:47]} 20... Nf7 {[%clk
0:02:10.5]} 21. Qxb7 {[%clk 0:01:48.2]} 21... Rab8 {[%clk 0:02:04.4]} 22. Qxa7
{[%clk 0:01:48.7]} 22... Nd6 {[%clk 0:01:52.9]} 23. b3 {[%clk 0:01:16.2]} 23...
f5 {[%clk 0:01:33.7]} 24. e5 {[%clk 0:00:55.7]} 24... Ne4 {[%clk 0:01:34.5]} 25.
Bb2 {[%clk 0:00:52.5]} 25... g5 {[%clk 0:01:25.8]} 26. Qd4 {[%clk 0:00:50.4]}
26... h5 {[%clk 0:01:26.1]} 27. Rxe4 {[%clk 0:00:43.6]} 27... fxe4 {[%clk
0:01:28]} 28. Qxe4 {[%clk 0:00:45.5]} 28... Rb4 {[%clk 0:01:28.1]} 29. Qg6
{[%clk 0:00:42.2]} 29... Qf7 {[%clk 0:01:10.2]} 30. Qxg5 {[%clk 0:00:43.1]}
30... Rf4 {[%clk 0:01:07.2]} 31. e6 {[%clk 0:00:22.5]} 31... Rxe6 {[%clk
0:01:08.1]} 32. Bxg7 {[%clk 0:00:23.7]} 32... Rg6 {[%clk 0:01:09.5]} 33. Qd8+
{[%clk 0:00:14.1]} 33... Kxg7 {[%clk 0:01:10.2]} 34. Ne5 {[%clk 0:00:15.3]}
34... Qf6 {[%clk 0:00:58.9]} 35. Qxc7+ {[%clk 0:00:13.1]} 35... Kh6 {[%clk
0:01:00]} 36. Nxg6 {[%clk 0:00:06.4]} 36... Qxa1+ {[%clk 0:01:00]} 37. Kh2
{[%clk 0:00:07.8]} 37... Rxf2 {[%clk 0:00:58]} 38. Nf4 {[%clk 0:00:08.2]} 38...
Qf6 {[%clk 0:00:55.7]} 39. Nd5 {[%clk 0:00:06.1]} 39... Qg6 {[%clk 0:00:47.4]}
40. Ne3 {[%clk 0:00:06.9]} 40... Rxa2 {[%clk 0:00:46.5]} 41. Qf4+ {[%clk
0:00:08]} 41... Kh7 {[%clk 0:00:44.5]} 42. b4 {[%clk 0:00:07.9]} 42... Rb2
{[%clk 0:00:42.5]} 43. Qc7+ {[%clk 0:00:07.3]} 43... Kh6 {[%clk 0:00:40]} 44.
Qf4+ {[%clk 0:00:04.7]} 44... Kh7 {[%clk 0:00:40.7]} 45. Qc7+ {[%clk 0:00:05.6]}
45... Kh6 {[%clk 0:00:39.5]} 46. Qf4+ {[%clk 0:00:04.5]} 46... Kh7 {[%clk
0:00:33]} 47. h4 {[%clk 0:00:05.9]} 47... Qg7 {[%clk 0:00:21.1]} 48. Qf5+ {[%clk
0:00:05]} 48... Kh6 {[%clk 0:00:22.3]} 49. Qf4+ {[%clk 0:00:05.4]} 49... Kh7
{[%clk 0:00:23.3]} 50. Qf5+ {[%clk 0:00:05.5]} 50... Kh6 {[%clk 0:00:24.8]} 51.
Qe6+ {[%clk 0:00:07]} 51... Kh7 {[%clk 0:00:25]} 52. Qe4+ {[%clk 0:00:08.4]}
52... Kh8 {[%clk 0:00:23.8]} 53. Nf5 {[%clk 0:00:07.6]} 53... Qc7+ {[%clk
0:00:05.4]} 54. Kh3 {[%clk 0:00:08.4]} 54... Qc3+ {[%clk 0:00:06.2]} 55. g3
{[%clk 0:00:09.4]} 55... Kh7 {[%clk 0:00:07.1]} 56. Qe7+ {[%clk 0:00:08.9]}
56... Kg6 {[%clk 0:00:07.9]} 57. Qg5+ {[%clk 0:00:07.5]} 57... Kf7 {[%clk
0:00:08.8]} 58. Qxh5+ {[%clk 0:00:08]} 58... Ke6 {[%clk 0:00:10.5]} 59. Qg6+
{[%clk 0:00:07.5]} 59... Kd5 {[%clk 0:00:11.9]} 60. Qd6+ {[%clk 0:00:07.7]}
60... Ke4 {[%clk 0:00:12.7]} 61. Qf4+ {[%clk 0:00:07.1]} 61... Kd5 {[%clk
0:00:14]} 62. Ne3+ {[%clk 0:00:08.2]} 62... Kc6 {[%clk 0:00:15.1]} 63. Qf3+
{[%clk 0:00:07.8]} 63... Kb5 {[%clk 0:00:15.3]} 64. Qb7+ {[%clk 0:00:08.3]}
64... Ka4 {[%clk 0:00:15.9]} 65. Nd1 {[%clk 0:00:08.6]} 65... Qxb4 {[%clk
0:00:08.8]} 66. Nxb2+ {[%clk 0:00:09.2]} 66... Kb3 {[%clk 0:00:10.4]} 67. Qxb4+
{[%clk 0:00:10.4]} 67... Kxb4 {[%clk 0:00:12.3]} 68. h5 {[%clk 0:00:12.3]} 1-0